bitfinex/quotes_ETHUSD_20240701
["timestamp","ask_amount","ask_price","bid_price","bid_amount"]
[1719796079054,2.88788,3462.8,3461.9,0.49502435]
[1719796079204,3.0,3462.7,3461.9,0.49502435]
[1719796079405,10.24197609,3464.0,3462.0,1.31333227]
[1719796079608,2.88709,3463.7,3462.2,0.75]
[1719796079806,2.758,3463.8,3462.3,0.05773508]
[1719796080001,3.0,3463.7,3462.2,0.75]
[1719796080247,3.0,3463.7,3462.0,0.53875243]
[1719796080248,3.0,3463.7,3462.4,0.75]
[1719796080420,3.0,3463.7,3462.5,0.55]
[1719796080722,3.0,3463.7,3462.6,0.185]
[1719796080908,3.0,3463.7,3462.7,0.05773147]
[1719796081114,3.0,3463.7,3462.6,0.185]
[1719796081642,2.758,3463.8,3462.7,0.05773153]
[1719796082209,2.758,3463.8,3462.8,0.75]
[1719796082410,2.758,3463.8,3462.9,0.05773072]
[1719796083507,3.0,3463.7,3462.9,0.05773072]
[1719796083714,3.0,3463.7,3462.5,0.55]
[1719796083909,2.758,3463.2,3462.0,1.28875243]
[1719796084150,2.758,3463.2,3462.1,0.61812524]
[1719796084655,3.0,3463.1,3462.1,0.61812524]
[1719796085228,3.0,3463.1,3462.1,1.36812524]
[1719796085631,3.0,3463.1,3462.2,0.05774077]
[1719796085843,3.0,3463.1,3462.1,1.36812524]
[1719796085844,3.0,3463.1,3462.3,0.25420041]
[1719796086181,3.0,3463.7,3462.4,0.55]
[1719796086477,5.88708,3463.7,3462.4,0.55]
[1719796087029,5.88708,3463.7,3462.3,0.19646184]
[1719796087030,2.88741,3463.4,3462.3,0.19646184]
[1719796087245,2.88717,3463.6,3462.3,0.19646184]
[1719796087246,3.0,3463.3,3462.3,0.19646184]
[1719796087455,3.0,3463.5,3462.3,0.19646184]
[1719796087667,2.758,3463.2,3462.3,0.19646184]
[1719796087877,3.0,3463.1,3462.3,0.19646184]
[1719796088171,2.88772,3463.0,3462.3,0.19646184]
[1719796088384,3.0,3463.1,3462.3,0.19646184]
[1719796088385,2.758,3462.6,3462.3,0.19646184]
[1719796088894,2.758,3462.6,3462.0,0.53875243]
[1719796088895,3.0,3462.5,3462.0,0.53875243]
[1719796089252,3.0,3462.5,3461.3,7.32]
[1719796089494,5.88809,3462.5,3461.1,4.8925]
[1719796089699,2.88825,3462.3,3461.1,4.8925]
[1719796089911,3.0,3462.2,3461.1,4.8925]
[1719796090121,3.0,3462.2,3461.2,0.05775787]
[1719796090271,2.758,3462.6,3461.2,0.05775787]
[1719796090272,3.0,3462.5,3461.3,0.49502579]
[1719796090803,5.88808,3462.5,3461.3,0.49502579]
[1719796090955,2.88817,3462.4,3461.3,0.49502579]
[1719796091158,3.0,3462.3,3461.3,0.49502579]
[1719796091911,2.758,3462.0,3461.3,0.49502579]
[1719796092051,2.758,3462.0,3460.8,7.32]
[1719796092252,5.88861,3461.9,3460.8,7.32]
[1719796092753,2.88868,3461.8,3460.8,7.32]
[1719796092983,3.0,3461.7,3460.5,6.049579]
[1719796093190,3.0,3461.9,3460.6,2.6589579]
[1719796094296,5.88858,3461.9,3460.6,2.6589579]
[1719796095499,3.0,3461.9,3460.6,2.6589579]
[1719796097859,2.623,3461.5,3460.6,2.6589579]
[1719796098059,2.623,3461.5,3460.7,0.35263497]
[1719796099892,3.0,3461.4,3460.7,0.35263497]
[1719796101997,3.0,3461.4,3460.3,8.477181]
[1719796101998,2.88916,3461.3,3460.3,7.32]
[1719796102582,5.10190198,3461.2,3460.3,7.32]
[1719796102780,2.10190578,3461.1,3460.3,7.32]
[1719796102994,2.10190578,3461.1,3459.9,1.157292]
[1719796103169,3.0,3461.2,3459.9,1.157292]
[1719796103501,3.0,3461.2,3460.0,1.4119792]
[1719796103714,2.623,3461.0,3460.0,1.4119792]
[1719796103925,3.0,3460.9,3460.0,1.4119792]
[1719796104917,2.623,3460.5,3460.0,1.4119792]
[1719796106222,2.623,3460.5,3459.7,6.04988]
[1719796106386,2.623,3460.5,3459.3,7.32]
[1719796106588,2.623,3460.5,3459.2,0.75]
[1719796106795,2.623,3460.5,3459.4,1.157458]
[1719796107304,2.623,3460.5,3459.2,0.75]
[1719796107533,3.0,3460.4,3459.3,0.56425]
[1719796108390,2.623,3461.1,3459.8,0.75]
[1719796108730,2.623,3460.6,3459.3,0.56425]
[1719796108933,2.623,3460.6,3459.4,0.7364237]
[1719796109425,3.0,3460.5,3459.4,0.7364237]
[1719796110606,3.0,3460.5,3459.2,1.907487]
[1719796111115,3.0,3460.5,3459.3,0.60778558]
[1719796111432,3.0,3461.1,3459.3,0.55]
[1719796111642,3.0,3461.1,3459.4,0.05777876]
[1719796111787,3.0,3461.1,3459.7,0.75]
[1719796111982,3.0,3461.1,3459.8,0.05777876]
[1719796112222,2.88883,3461.7,3459.8,5.50027876]
[1719796112388,2.623,3461.5,3459.8,5.50027876]
[1719796112613,2.623,3461.5,3459.9,3.44027788]
[1719796112790,7.23135,3463.4,3459.9,3.44027788]
[1719796112791,2.88811,3462.5,3460.2,2.88994]
[1719796112993,2.623,3462.3,3460.4,0.75]
[1719796113187,2.623,3462.3,3460.8,0.75]
[1719796113402,2.623,3461.8,3460.5,0.75]
[1719796113603,2.623,3461.8,3460.6,0.55]
[1719796114024,7.2368,3462.8,3460.5,0.75]
[1719796114252,7.2368,3462.8,3460.6,0.55]
[1719796114253,2.623,3462.1,3460.6,0.55]
[1719796114454,3.0,3462.0,3460.7,1.3]
[1719796114651,3.0,3462.0,3460.8,0.24853755]
[1719796114957,2.623,3462.6,3460.9,4.8925]
[1719796115158,2.623,3462.6,3461.0,0.607753]
[1719796115312,2.623,3462.6,3461.1,0.64410286]
[1719796115513,2.623,3462.6,3461.3,0.75]
[1719796116310,2.623,3462.6,3461.1,1.39410286]
[1719796116644,2.623,3462.6,3461.3,0.75]
[1719796116827,2.623,3463.1,3461.4,0.60775085]
[1719796117226,2.623,3463.1,3461.4,0.55]
[1719796117616,2.88767,3463.0,3461.4,0.55]
[1719796117813,2.623,3463.1,3461.4,0.55]
[1719796118215,3.0,3463.0,3461.9,0.75]
[1719796118564,2.88674,3464.2,3461.5,0.05774543]
[1719796118565,2.623,3463.6,3462.0,4.9502446]
[1719796118715,2.623,3463.6,3462.3,0.75]
[1719796119138,2.623,3463.6,3462.4,0.05773557]
[1719796119428,2.623,3463.6,3462.5,0.75]
[1719796119612,2.623,3464.1,3462.6,0.0577356]
[1719796120016,2.623,3464.1,3462.6,0.8077356]
[1719796120507,2.623,3464.1,3462.2,0.75]
[1719796120770,9.84146,3464.7,3462.3,1.59420919]
[1719796120913,2.623,3464.2,3462.3,1.53648045]
[1719796121114,2.623,3464.2,3462.4,0.05772793]
[1719796121312,2.623,3464.2,3462.5,1.3]
[1719796121519,2.623,3464.2,3462.7,0.75]
[1719796121764,2.623,3464.2,3462.8,0.05772796]
[1719796122068,6.9552,3464.7,3463.1,5.6425]
[1719796122235,2.623,3464.8,3463.2,0.0577199]
[1719796122589,2.623,3464.8,3463.3,0.05771898]
[1719796122774,2.623,3464.8,3463.3,0.55274088]
[1719796123628,2.623,3464.8,3463.4,0.55]
[1719796123847,3.0,3464.7,3463.5,0.05771506]
[1719796124049,3.0,3464.7,3463.6,0.55]
[1719796124232,3.0,3464.7,3463.7,0.05771592]
[1719796124451,0.0326386,3464.9,3463.9,0.75]
[1719796124619,0.0326386,3464.9,3464.0,0.05771034]
[1719796124960,0.0326386,3464.9,3463.4,3.43732]
[1719796124961,0.0326386,3464.9,3463.4,1.3]
[1719796125373,2.623,3464.8,3463.3,0.4950219]
[1719796125532,5.50917,3464.8,3463.4,0.55]
[1719796125735,2.623,3464.3,3463.3,0.4950219]
[1719796128565,3.0326386,3464.9,3463.5,0.05772732]
[1719796128718,0.0326386,3464.9,3463.5,0.05772732]
[1719796128924,0.0326386,3464.9,3463.6,0.55]
[1719796129250,0.0326386,3464.9,3463.7,0.18387522]
[1719796129457,0.0326386,3464.9,3464.0,0.75]
[1719796129621,0.0326386,3464.9,3464.1,0.55]
[1719796129822,0.0326386,3464.9,3463.7,0.18387522]
[1719796130134,2.9187886,3464.9,3463.7,0.18387522]
[1719796130482,2.9187886,3464.9,3463.4,0.53875219]
[1719796130483,3.0,3464.8,3463.4,0.53875219]
[1719796131236,5.50942,3464.5,3463.4,0.53875219]
[1719796131431,3.0,3464.4,3463.4,0.53875219]
[1719796131748,2.88665,3464.3,3463.4,0.53875219]
[1719796131932,3.0,3464.2,3463.4,0.53875219]
[1719796132133,3.0,3464.4,3463.4,0.53875219]
[1719796132370,5.8865,3464.4,3463.4,0.53875219]
[1719796132574,3.0,3464.4,3463.4,0.53875219]
[1719796132934,2.88649,3464.5,3463.4,0.53875219]
[1719796133133,5.623,3464.4,3463.4,0.53875219]
[1719796133345,2.623,3464.4,3463.4,0.53875219]
[1719796133550,3.0,3464.3,3463.4,0.53875219]
[1719796134662,2.88617,3464.8,3463.4,0.53875219]
[1719796134864,5.88625,3464.7,3463.4,0.53875219]
[1719796135804,2.88634,3464.6,3463.4,0.53875219]
[1719796136014,3.0,3464.5,3463.4,0.53875219]
[1719796136307,2.623,3464.6,3463.4,0.53875219]
[1719796136472,3.0,3464.5,3463.4,0.53875219]
[1719796137301,5.88643,3464.5,3463.4,0.53875219]
[1719796137621,2.88685,3464.0,3463.1,7.32]
[1719796137815,2.623,3464.1,3463.1,7.32]
[1719796138019,5.88688,3464.0,3463.1,7.32]
[1719796138223,3.0,3464.0,3463.1,7.32]
[1719796138390,3.0,3464.0,3463.2,0.78973204]
[1719796138591,3.0,3464.0,3463.2,0.732]
[1719796139020,3.0,3464.0,3463.3,0.05773007]
[1719796139221,3.0,3464.0,3463.2,0.732]
[1719796139393,5.50936,3464.6,3463.2,0.732]
[1719796139583,3.0,3464.5,3463.3,0.8052]
[1719796139779,5.8865,3464.5,3463.3,0.8052]
[1719796140328,2.88659,3464.3,3463.3,0.8052]
[1719796140490,3.0,3464.2,3463.3,0.8052]
[1719796140696,5.88656,3464.4,3463.4,0.81252]
[1719796140891,2.623,3464.1,3463.1,7.32]
[1719796141112,2.88693,3463.9,3463.1,7.32]
[1719796141459,3.0,3463.8,3463.1,7.32]
[1719796141922,3.0,3464.0,3462.6,1.44580284]
[1719796143220,3.0,3464.0,3462.7,0.55]
[1719796143531,3.0,3464.0,3462.8,1.49583028]
[1719796144195,2.623,3465.0,3463.1,0.75]
[1719796144518,2.623,3465.0,3463.3,7.01530292]
[1719796144727,2.623,3465.0,3463.5,0.75]
[1719796145076,2.623,3465.0,3463.3,6.26530292]
[1719796145282,2.623,3465.0,3463.5,1.37280292]
[1719796145490,2.623,3465.0,3463.6,0.30774067]
[1719796145697,2.623,3465.0,3463.6,0.24997804]
[1719796145998,2.623,3465.0,3463.5,1.62197755]
[1719796146199,3.0326386,3464.9,3463.6,1.62197755]
[1719796146395,3.0326386,3464.9,3463.7,0.55982906]
[1719796146594,3.0326386,3464.9,3463.7,0.30985102]
[1719796147224,3.0326386,3464.9,3463.8,0.24997846]
[1719796147392,5.9187386,3464.9,3463.7,1.68185053]
[1719796147726,2.88626,3464.7,3463.8,0.16818505]
[1719796148235,3.0326386,3464.9,3463.7,0.30985102]
[1719796148537,5.9187486,3464.9,3463.7,0.30985102]
[1719796148715,2.88617,3464.8,3463.8,0.24999503]
[1719796148919,5.88627,3464.7,3463.9,0.19320441]
[1719796149357,3.0,3464.7,3463.9,0.19320441]
[1719796149518,3.0326386,3464.9,3463.9,0.19320441]
[1719796149854,2.88618,3464.8,3463.9,0.19320441]
[1719796150069,3.0,3464.7,3463.9,0.19320441]
[1719796150273,3.0,3464.7,3463.7,0.30985102]
[1719796150274,5.9187686,3464.9,3464.0,0.18752534]
[1719796150422,3.0,3464.8,3463.8,1.372198]
[1719796150622,3.0,3464.8,3463.9,0.24998593]
[1719796150817,3.0,3464.8,3464.0,0.05772145]
[1719796151044,3.0,3464.8,3463.8,1.372198]
[1719796151045,0.0326386,3464.9,3463.8,1.372198]
[1719796151259,0.0326386,3464.9,3463.9,0.41819079]
[1719796151475,0.0326386,3464.9,3464.1,1.372198]
[1719796151684,0.0326386,3464.9,3463.9,0.1682049]
[1719796151820,0.0326386,3464.9,3464.2,1.6215454]
[1719796152015,0.0326386,3464.9,3463.7,0.30985102]
[1719796152215,0.0326386,3464.9,3464.2,1.37143451]
[1719796152448,0.0326386,3464.9,3464.3,0.24995024]
[1719796152667,0.0326386,3464.9,3464.1,1.37143451]
[1719796152862,0.0326386,3464.9,3464.2,0.24995956]
[1719796153033,0.0326386,3464.9,3464.3,0.41209897]
[1719796153229,0.0326386,3464.9,3464.4,0.30766092]
[1719796153459,2.88503,3466.2,3464.6,4.8925]
[1719796153658,2.623,3465.6,3464.7,1.67906914]
[1719796153966,2.623,3465.6,3464.8,2.33623105]
[1719796154184,2.623,3465.6,3464.9,0.24993492]
[1719796154331,2.623,3465.6,3465.0,0.05770473]
[1719796155118,2.623,3466.1,3464.8,2.02787697]
[1719796155324,2.623,3466.1,3464.9,1.491945]
[1719796155568,2.623,3466.1,3465.0,0.2499073]
[1719796155763,2.623,3466.1,3464.9,0.6920377]
[1719796156064,2.623,3465.6,3464.9,0.6920377]
[1719796156438,2.623,3465.6,3464.6,1.37061443]
[1719796156642,2.623,3465.6,3464.7,0.24992184]
[1719796156937,2.623,3465.6,3464.8,0.24992184]
[1719796157269,2.623,3465.6,3464.7,1.37061443]
[1719796157436,2.623,3465.6,3464.8,0.24991391]
[1719796157639,2.623,3465.6,3464.9,0.16205283]
[1719796158265,2.623,3465.6,3465.0,0.05770463]
[1719796158589,2.89601,3467.4,3465.0,4.95020463]
[1719796158723,2.623,3466.8,3465.4,2.12034992]
[1719796159107,2.623,3466.8,3465.6,1.37034992]
[1719796159273,2.623,3466.8,3465.7,1.31183536]
[1719796159434,2.623,3466.8,3465.7,0.05768445]
[1719796159763,2.623,3466.8,3465.8,0.05768448]
[1719796160166,2.623,3466.8,3465.9,1.0042207]
[1719796160480,2.623,3466.8,3465.8,0.45392149]
[1719796160622,2.623,3466.8,3465.9,3.0604429]
[1719796160823,0.012,3467.4,3466.0,6.20418494]
[1719796160824,2.623,3467.3,3466.0,6.20418494]
[1719796161163,2.623,3467.3,3466.1,5.09864245]
[1719796161366,2.623,3467.3,3466.2,2.5104429]
[1719796161571,0.012,3467.4,3466.4,0.59295547]
[1719796161872,0.012,3467.4,3466.6,0.59295547]
[1719796162026,0.012,3467.4,3466.7,2.56793878]
[1719796162228,0.012,3467.4,3466.8,2.90900812]
[1719796162428,0.012,3467.4,3466.8,0.34106933]
[1719796162866,0.012,3467.4,3466.6,1.50593679]
[1719796163067,0.012,3467.4,3466.4,0.59295547]
[1719796163254,0.012,3467.4,3466.5,1.00398559]
[1719796163430,0.012,3467.4,3466.1,2.33467728]
[1719796163431,0.012,3467.4,3466.1,1.44524408]
[1719796163631,2.623,3467.1,3466.2,2.51022098]
[1719796163830,2.623,3467.1,3466.1,0.59295547]
[1719796163831,2.623,3467.1,3466.0,5.48603647]
[1719796164068,2.623,3467.1,3466.1,2.51029337]
[1719796164302,2.623,3467.1,3466.2,2.51027628]
[1719796164510,2.623,3467.1,3466.0,5.48603647]
[1719796164804,2.623,3467.1,3466.1,3.3052348]
[1719796165008,2.623,3467.1,3466.1,0.79495852]
[1719796165189,2.623,3467.1,3465.8,1.04745796]
[1719796165402,2.623,3467.1,3465.8,0.45392149]
[1719796165403,3.0,3467.0,3465.8,0.45392149]
[1719796165592,2.88451,3466.8,3465.8,0.45392149]
[1719796165798,2.623,3466.6,3465.8,0.45392149]
[1719796165996,5.50773,3466.6,3465.8,0.45392149]
[1719796166165,5.50773,3466.6,3465.4,4.8925]
[1719796166588,5.50773,3466.6,3465.3,1.50652849]
[1719796166795,5.50773,3466.6,3465.2,1.50654282]
[1719796166980,5.50773,3466.6,3465.1,19.79]
[1719796167180,2.88481,3466.5,3465.2,1.00435409]
[1719796167465,2.623,3466.1,3465.3,0.98308942]
[1719796167927,3.0,3466.0,3464.7,1.50654015]
[1719796168279,3.0,3466.0,3464.6,7.32]
[1719796169392,8.77041,3466.0,3464.6,7.32]
[1719796169593,5.88517,3466.0,3464.6,7.32]
[1719796169921,2.88542,3465.7,3464.6,7.32]
[1719796170124,3.0,3466.0,3464.7,0.732]
[1719796170420,2.88567,3465.4,3464.1,7.32]
[1719796170921,5.50858,3465.6,3464.1,7.32]
[1719796171129,3.0,3465.5,3464.2,0.732]
[1719796171277,2.88576,3465.3,3464.2,0.732]
[1719796171478,3.0,3465.2,3464.2,0.732]
[1719796171920,3.0,3465.5,3464.2,0.732]
[1719796172186,3.0,3465.5,3464.3,0.05770817]
[1719796172327,3.0,3465.5,3464.4,0.81097082]
[1719796172669,3.0,3465.5,3464.5,0.0577082]
[1719796173019,2.88476,3466.5,3464.5,0.0577082]
[1719796173220,2.88476,3466.5,3464.7,4.8925]
[1719796173420,2.88476,3466.5,3464.8,0.60769316]
[1719796173637,2.88476,3466.5,3464.9,0.60501932]
[1719796173858,2.623,3466.6,3465.0,0.05769319]
[1719796174229,2.623,3466.6,3465.1,0.55]
[1719796174455,5.50772,3466.6,3465.1,0.55]
[1719796174636,9.88198,3466.7,3464.9,0.60501932]
[1719796174637,5.50816,3466.1,3464.9,0.60501932]
[1719796174853,5.50816,3466.1,3465.0,0.54975193]
[1719796175169,2.88517,3466.0,3465.0,0.54975193]
[1719796175481,2.623,3465.6,3465.0,0.54975193]
[1719796175766,2.623,3465.6,3464.4,0.81097082]
[1719796175924,3.0,3466.0,3464.4,0.81097082]
[1719796176126,2.623,3466.0,3464.4,0.81097082]
[1719796176337,3.0,3465.9,3464.4,0.81097082]
[1719796176721,3.0,3465.9,3464.5,0.05769987]
[1719796176925,3.0,3465.9,3464.6,0.16186707]
[1719796177170,3.0,3465.9,3464.7,0.55]
[1719796177536,3.0,3465.9,3464.6,0.16186707]
[1719796177743,3.0,3465.9,3464.4,0.81097082]
[1719796177744,2.623,3465.0,3464.4,0.81097082]
[1719796179782,5.623,3465.5,3464.4,0.81097082]
[1719796179962,3.0,3465.4,3464.4,0.81097082]
[1719796180306,2.88577,3465.3,3464.4,0.81097082]
[1719796180494,3.0,3465.2,3464.4,0.81097082]
[1719796180872,2.623,3465.0,3464.4,0.81097082]
[1719796181865,2.623,3464.5,3463.5,4.8925]
[1719796183215,2.623,3465.0,3463.5,4.8925]
[1719796183396,3.0,3464.9,3463.5,4.8925]
[1719796183768,5.88614,3464.9,3463.5,4.8925]
[1719796183969,5.88614,3464.9,3463.0,13.22]
[1719796184213,2.88626,3464.7,3463.2,3.11824327]
[1719796184607,5.50943,3464.5,3463.2,2.56824327]
[1719796184828,2.623,3464.5,3463.2,2.56824327]
[1719796184985,2.623,3464.5,3463.0,12.47]
[1719796184986,3.0,3464.4,3463.3,0.4433496]
[1719796186130,2.623,3464.0,3463.3,0.4433496]
[1719796186782,2.623,3464.0,3462.9,12.2125]
[1719796190846,5.8865,3464.4,3462.2,19.79]
[1719796190847,2.623,3463.2,3462.2,19.79]
[1719796191052,2.623,3463.2,3461.7,5.48716108]
[1719796191053,2.623,3463.2,3461.7,12.2125]
[1719796191199,2.623,3463.2,3462.0,1.15659]
[1719796191631,2.623,3463.2,3461.7,12.2125]
[1719796191899,2.623,3463.2,3461.8,1.29625]
[1719796192095,2.623,3463.2,3461.9,0.05774743]
[1719796192321,2.623,3463.2,3461.8,1.29625]
[1719796193245,2.623,3463.2,3461.9,1.3]
[1719796193411,2.623,3463.2,3461.9,0.60774441]
[1719796193617,2.623,3463.2,3462.0,1.52730934]
[1719796193815,2.623,3463.7,3462.1,0.55]
[1719796194629,2.623,3463.7,3462.1,1.3]
[1719796194946,2.88718,3463.6,3462.1,0.55]
[1719796195243,2.88718,3463.6,3462.2,0.28273093]
[1719796195540,2.88718,3463.6,3462.3,0.55]
[1719796195722,2.88718,3463.6,3462.2,0.28273093]
[1719796195931,2.623,3463.7,3462.3,0.55]
[1719796196442,2.623,3463.7,3462.3,1.3]
[1719796196646,2.623,3463.7,3462.4,0.15827309]
[1719796197074,2.623,3463.7,3462.3,0.55]
[1719796197275,2.623,3463.7,3462.1,0.55]
[1719796197776,2.623,3463.7,3462.2,0.05773955]
[1719796197981,2.623,3463.7,3462.3,0.60773913]
[1719796198275,2.623,3463.7,3462.3,0.05773913]
[1719796198433,2.623,3463.7,3462.3,0.21350485]
[1719796198633,5.51014,3463.7,3462.3,0.21350485]
[1719796199255,2.623,3463.2,3462.3,0.21350485]
[1719796200062,5.5105,3463.2,3462.3,0.21350485]
[1719796200380,5.51056,3463.2,3462.3,0.21350485]
[1719796200547,3.0,3463.1,3462.3,0.21350485]
[1719796201176,2.623,3462.7,3462.3,0.21350485]
[1719796201348,2.623,3462.7,3461.7,7.32]
[1719796201694,2.623,3462.7,3461.8,0.05775566]
[1719796202034,2.8875,3463.2,3461.7,7.32]
[1719796202035,2.623,3463.2,3461.7,7.32]
[1719796202279,3.0,3463.1,3462.0,4.8925]
[1719796202580,3.0,3463.4,3462.1,1.35774584]
[1719796202764,3.0,3463.6,3462.2,0.62502458]
[1719796202967,3.0,3463.6,3462.3,0.05774087]
[1719796203335,2.623,3463.7,3462.3,0.05774087]
[1719796203336,2.623,3463.7,3462.4,0.55]
[1719796203567,2.623,3463.7,3462.5,0.05773952]
[1719796204156,5.51014,3463.7,3462.4,0.55]
[1719796204469,5.51014,3463.7,3462.3,0.55]
[1719796204793,5.51014,3463.7,3462.2,0.62502458]
[1719796204794,2.623,3463.2,3462.2,0.62502458]
[1719796206744,2.623,3463.2,3461.7,7.32]
[1719796206745,5.8876,3463.1,3461.7,7.32]
[1719796207655,3.0,3463.1,3461.7,7.32]
[1719796207857,2.623,3463.5,3461.8,0.05775109]
[1719796208171,2.623,3463.5,3462.1,0.75]
[1719796208474,5.51025,3463.5,3462.2,0.55]
[1719796208640,2.623,3463.5,3462.2,0.05774286]
[1719796208843,2.623,3463.5,3462.3,0.55002429]
[1719796209156,2.88739,3463.4,3462.3,0.55002429]
[1719796209372,2.88747,3463.3,3462.3,0.55002429]
[1719796209582,2.623,3463.0,3462.3,0.55002429]
[1719796212070,2.88776,3462.9,3461.9,0.73777511]
[1719796212267,2.623,3463.0,3461.9,0.73777511]
[1719796212496,2.88775,3462.9,3461.9,0.73777511]
[1719796212682,2.623,3463.0,3461.9,0.73777511]
[1719796212887,5.51068,3463.0,3462.0,0.80577751]
[1719796213421,2.88775,3462.9,3462.0,0.80577751]
[1719796213772,2.88795,3462.7,3462.0,0.80577751]
[1719796214281,2.88775,3462.9,3461.7,7.32]
[1719796214282,2.88826,3462.3,3461.7,7.32]
[1719796214482,2.623,3462.0,3461.1,8.6932441]
[1719796214689,2.623,3462.5,3461.3,0.25015087]
[1719796214867,2.623,3462.5,3461.4,2.4276127]
[1719796215074,2.623,3462.5,3461.5,0.25013547]
[1719796215305,2.623,3462.5,3461.6,0.05775875]
[1719796215816,2.623,3462.5,3461.4,2.11970289]
[1719796216315,2.623,3462.5,3461.4,2.36985117]
[1719796216488,2.623,3462.5,3461.5,0.89188998]
[1719796218801,5.51108,3462.5,3461.5,0.89188998]
[1719796219211,2.623,3462.5,3461.5,0.89188998]
[1719796219388,2.623,3461.9,3461.5,0.89188998]
[1719796219596,2.623,3461.9,3461.1,7.32]
[1719796220309,2.623,3462.3,3461.2,1.62306814]
[1719796220653,2.623,3462.3,3461.3,0.2501515]
[1719796220773,2.623,3462.3,3461.1,7.32]
[1719796220774,2.623,3462.3,3461.1,8.69275136]
[1719796220972,2.623,3462.3,3461.2,0.25015737]
[1719796221176,2.623,3462.3,3461.3,0.89429087]
[1719796224375,7.1192,3463.1,3461.4,0.60776392]
[1719796224625,7.1192,3463.1,3461.4,0.55]
[1719796224935,0.75,3463.8,3461.6,6.26549203]
[1719796224936,7.2049,3463.7,3461.6,6.26549203]
[1719796225079,7.2049,3463.7,3461.8,1.37299203]
[1719796225282,7.2049,3463.7,3461.9,0.6077438]
[1719796225595,7.2049,3463.7,3462.0,0.55]
[1719796225796,7.2049,3463.7,3462.1,0.05774386]
[1719796226000,7.2049,3463.7,3461.8,7.32]
[1719796226199,2.88734,3463.4,3461.9,1.56554575]
[1719796226527,5.88743,3463.3,3461.9,1.56554575]
[1719796227021,3.0,3463.3,3461.9,1.56554575]
[1719796227426,3.0,3463.3,3461.9,1.01554575]
[1719796227427,2.88764,3463.1,3461.9,1.01554575]
[1719796227580,2.88767,3463.0,3462.0,0.89429087]
[1719796228038,2.88755,3463.2,3462.1,0.05775528]
[1719796228184,3.0,3463.1,3462.1,0.05775528]
[1719796228620,3.0,3463.2,3462.1,0.05775528]
[1719796228782,3.0,3463.2,3462.2,0.19675919]
[1719796228985,3.0,3463.6,3462.3,0.05774714]
[1719796230484,3.0,3463.6,3462.3,4.8925]
[1719796230683,3.0,3463.7,3462.4,0.55]
[1719796230927,3.0,3463.7,3462.5,0.63892592]
[1719796231520,5.8871,3463.7,3462.5,0.63892592]
[1719796231696,3.0,3463.7,3462.5,0.63892592]
[1719796231882,3.0,3463.7,3462.2,0.19675919]
[1719796231883,10.03096,3463.4,3462.2,0.19675919]
[1719796232084,3.0,3463.3,3462.3,0.05774945]
[1719796232887,3.0,3463.6,3462.4,0.05774815]
[1719796233117,3.0,3463.7,3462.4,0.05774815]
[1719796233418,3.0,3463.7,3462.0,1.64429087]
[1719796233589,3.0,3463.7,3462.1,2.22454409]
[1719796233991,3.0,3463.7,3462.2,0.80774267]
[1719796234191,3.0,3463.7,3462.3,0.60774239]
[1719796234737,2.88639,3464.6,3462.4,7.78066]
[1719796234912,7.4935,3464.7,3462.8,2.88781]
[1719796235124,7.4935,3464.7,3462.9,0.60772733]
[1719796235285,5.50906,3465.0,3462.9,0.60772733]
[1719796235629,5.50906,3465.0,3463.0,4.8925]
[1719796235921,2.8861,3464.9,3463.1,0.6077275]
[1719796236107,2.623,3465.0,3463.2,0.60502275]
[1719796236309,2.623,3465.0,3463.3,0.60772519]
[1719796236484,2.88643,3464.5,3463.4,0.05772527]
[1719796236690,2.88655,3464.4,3462.5,5.33525791]
[1719796236891,2.623,3464.5,3462.9,0.732]
[1719796237201,3.0,3464.4,3462.9,0.732]
[1719796238088,3.0,3464.4,3463.0,0.55]
[1719796238515,2.88658,3464.3,3463.0,0.55]
[1719796238789,2.88658,3464.3,3463.1,0.8602]
[1719796239500,3.0,3464.4,3463.1,0.8602]
[1719796239700,3.373,3464.0,3462.8,7.32]
[1719796239902,2.623,3464.0,3462.8,7.32]
[1719796240110,2.88715,3463.7,3462.8,7.32]
[1719796241948,5.88693,3463.9,3462.8,7.32]
[1719796241949,2.88717,3463.6,3462.8,7.32]
[1719796242093,2.88717,3463.6,3462.9,0.732]
[1719796242923,3.0,3463.9,3462.9,0.732]
[1719796243268,2.8857,3465.4,3462.9,0.732]
[1719796243269,2.88639,3464.6,3463.0,0.60774375]
[1719796243536,3.0,3464.5,3463.0,0.60774375]
[1719796243712,2.88609,3464.9,3463.1,4.8925]
[1719796243926,2.88609,3464.9,3463.2,1.15775284]
[1719796244226,2.88617,3464.8,3463.2,1.15775284]
[1719796244730,2.88617,3464.8,3463.2,1.10002438]
[1719796245040,3.0,3464.7,3463.2,1.10002438]
[1719796245235,2.88639,3464.6,3463.2,1.10002438]
[1719796245388,3.0,3464.5,3463.3,0.59925244]
[1719796246021,3.0,3464.7,3463.3,0.59925244]
[1719796246295,3.75,3464.9,3463.3,0.59925244]
[1719796246490,5.50943,3464.5,3463.4,0.54917524]
[1719796246718,2.88667,3464.2,3463.4,0.54917524]
[1719796247504,3.0,3464.4,3463.4,0.54917524]
[1719796247505,5.88655,3464.4,3463.4,0.54917524]